bitfinex/quotes_BTCUSD_20250102
["timestamp","ask_amount","ask_price","bid_price","bid_amount"]
[1735808418848,0.1876455,96252.0,96251.0,0.11298632]
[1735808419039,0.1876455,96252.0,96251.0,0.10698632]
[1735808419257,0.1886455,96252.0,96251.0,0.11498632]
[1735808419600,0.1866455,96252.0,96251.0,0.10398632]
[1735808419801,0.1866455,96252.0,96251.0,0.11698632]
[1735808420124,0.0876455,96252.0,96251.0,0.10798632]
[1735808420285,0.0876455,96252.0,96251.0,0.10398632]
[1735808420491,0.0876455,96252.0,96251.0,0.10415712]
[1735808420704,0.0877309,96252.0,96251.0,0.10815712]
[1735808420919,0.0010854,96252.0,96251.0,0.10815712]
[1735808421167,0.0877309,96252.0,96251.0,0.10815712]
[1735808421638,0.0887309,96252.0,96251.0,0.11715712]
[1735808422047,0.0020854,96252.0,96251.0,0.19785712]
[1735808422296,0.0887309,96252.0,96251.0,0.19785712]
[1735808423494,0.0020854,96252.0,96251.0,0.19785712]
[1735808423847,0.0887309,96252.0,96251.0,0.19785712]
[1735808424253,0.0020854,96252.0,96251.0,0.19785712]
[1735808424664,0.0020854,96252.0,96251.0,0.24305712]
[1735808426132,0.0020854,96252.0,96251.0,0.39305712]
[1735808426715,0.0020854,96252.0,96251.0,0.34385712]
[1735808427244,0.0020854,96252.0,96251.0,0.34785712]
[1735808428000,0.0867309,96252.0,96251.0,0.10815712]
[1735808428213,0.0867309,96252.0,96251.0,0.11715712]
[1735808428606,0.0867309,96252.0,96251.0,0.10415712]
[1735808428769,0.0867309,96252.0,96251.0,0.0091708]
[1735808428970,0.0867309,96252.0,96251.0,0.0151708]
[1735808429179,0.0867309,96252.0,96251.0,0.0061708]
[1735808429387,0.0867309,96252.0,96251.0,0.0001708]
[1735808429581,0.0867309,96252.0,96251.0,0.0081708]
[1735808429802,0.0867309,96252.0,96251.0,0.0031708]
[1735808430231,0.0867309,96252.0,96251.0,0.0001708]
[1735808431283,0.0867309,96252.0,96251.0,0.0021708]
[1735808431542,0.0867309,96252.0,96251.0,0.0001708]
[1735808431769,0.16773779,96252.0,96251.0,0.0001708]
[1735808431939,0.0867309,96252.0,96251.0,0.0031708]
[1735808432146,0.0867309,96252.0,96251.0,0.0011708]
[1735808432500,0.0867309,96252.0,96251.0,0.0001708]
[1735808433100,0.0867309,96252.0,96251.0,0.0031708]
[1735808434253,0.0867309,96252.0,96251.0,0.0001708]
[1735808434609,0.0867309,96252.0,96251.0,0.0011708]
[1735808434814,0.0867309,96252.0,96251.0,0.0001708]
[1735808435240,0.0877309,96252.0,96251.0,0.0011708]
[1735808435755,0.0867309,96252.0,96251.0,0.0011708]
[1735808435958,0.0867309,96252.0,96251.0,0.0001708]
[1735808436321,0.0867309,96252.0,96251.0,0.0011708]
[1735808438953,0.0867309,96252.0,96251.0,0.10515712]
[1735808440874,8.54e-05,96252.0,96251.0,0.10515712]
[1735808442127,8.54e-05,96252.0,96251.0,0.10415712]
[1735808442348,8.54e-05,96252.0,96251.0,0.10915712]
[1735808442755,8.54e-05,96252.0,96251.0,0.10415712]
[1735808444295,8.54e-05,96252.0,96251.0,0.11015712]
[1735808444689,8.54e-05,96252.0,96251.0,0.10615712]
[1735808444992,8.54e-05,96252.0,96251.0,0.11415712]
[1735808445275,8.54e-05,96252.0,96251.0,0.10415712]
[1735808445469,8.54e-05,96252.0,96251.0,0.10715712]
[1735808445714,8.54e-05,96252.0,96251.0,0.11615712]
[1735808445885,8.54e-05,96252.0,96251.0,0.10415712]
[1735808446324,8.54e-05,96252.0,96251.0,0.0131708]
[1735808447307,8.54e-05,96252.0,96251.0,0.11715712]
[1735808447519,8.54e-05,96252.0,96251.0,0.11315712]
[1735808447757,8.54e-05,96252.0,96251.0,0.10415712]
[1735808447970,8.54e-05,96252.0,96251.0,0.11815712]
[1735808448147,8.54e-05,96252.0,96251.0,0.10915712]
[1735808448623,8.54e-05,96252.0,96251.0,0.11815712]
[1735808448791,8.54e-05,96252.0,96251.0,0.10415712]
[1735808449265,8.54e-05,96252.0,96251.0,0.11815712]
[1735808450865,0.207754,96268.0,96252.0,0.207787]
[1735808451083,0.207754,96268.0,96253.0,0.18518632]
[1735808451305,0.0817309,96254.0,96253.0,0.18518632]
[1735808451979,0.0817309,96257.0,96253.0,0.18518632]
[1735808452199,0.0817309,96254.0,96253.0,0.18518632]
[1735808452378,0.0817309,96254.0,96253.0,0.19018632]
[1735808452529,0.0817309,96254.0,96253.0,0.18518632]
[1735808453872,0.0817309,96254.0,96253.0,0.19918632]
[1735808456447,0.0817309,96254.0,96253.0,0.014]
[1735808457457,0.0817309,96254.0,96253.0,0.009]
[1735808457659,0.0817309,96252.0,96251.0,0.0001708]
[1735808458063,0.41556,96256.0,96251.0,0.18185712]
[1735808458064,0.0817309,96254.0,96251.0,0.18185712]
[1735808458288,0.0817309,96254.0,96252.0,0.10398632]
[1735808458447,8.54e-05,96257.0,96252.0,0.10398632]
[1735808458448,0.0817309,96256.0,96252.0,0.10398632]
[1735808458642,0.0817309,96253.0,96252.0,0.10398632]
[1735808460962,0.0817309,96253.0,96252.0,0.10498632]
[1735808461413,0.0817309,96253.0,96252.0,0.10898632]
[1735808461945,0.0817309,96253.0,96252.0,0.11098632]
[1735808463042,0.2895159,96253.0,96252.0,0.11098632]
[1735808464637,0.0817309,96253.0,96252.0,0.11098632]
[1735808465818,0.2895159,96253.0,96252.0,0.11098632]
[1735808466347,0.0817309,96253.0,96252.0,0.11098632]
[1735808466549,0.2895159,96253.0,96252.0,0.11098632]
[1735808466923,0.207785,96253.0,96252.0,0.11098632]
[1735808467132,0.2895159,96253.0,96252.0,0.11098632]
[1735808467709,0.2895159,96253.0,96252.0,0.11115712]
[1735808469459,0.0817309,96253.0,96252.0,0.11115712]
[1735808469852,0.2895159,96253.0,96252.0,0.11115712]
[1735808471440,0.0817309,96253.0,96252.0,0.11115712]
[1735808489795,0.0817309,96253.0,96252.0,0.0071708]
[1735808501051,0.17525647,96253.0,96252.0,0.0071708]
[1735808502069,0.0817309,96253.0,96252.0,0.0071708]
[1735808503179,0.0817309,96253.0,96252.0,0.0051708]
[1735808503544,0.0817309,96253.0,96252.0,0.0061708]
[1735808504215,0.0817309,96253.0,96252.0,0.0011708]
[1735808504415,0.0817309,96253.0,96252.0,0.10515712]
[1735808504641,0.0817309,96253.0,96252.0,0.10815712]
[1735808504796,0.0817309,96253.0,96252.0,0.10515712]
[1735808504972,0.0817309,96253.0,96252.0,0.10415712]
[1735808505178,0.0817309,96253.0,96252.0,0.10915712]
[1735808505377,0.1026276,96253.0,96252.0,0.10915712]
[1735808506806,0.1256276,96253.0,96252.0,0.0051708]
[1735808507243,0.1047309,96253.0,96252.0,0.0051708]
[1735808507450,0.19846935,96253.0,96252.0,0.0051708]
[1735808508030,0.17546935,96253.0,96252.0,0.0001708]
[1735808508378,0.17546935,96253.0,96252.0,0.0051708]
[1735808509654,0.17546935,96253.0,96252.0,0.0001708]
[1735808509849,0.17546935,96253.0,96252.0,0.0011708]
[1735808510049,0.17546935,96253.0,96252.0,0.0051708]
[1735808511135,0.0817309,96253.0,96252.0,0.0001708]
[1735808511713,0.0817309,96253.0,96252.0,0.0051708]
[1735808511822,0.0817309,96253.0,96252.0,0.0011708]
[1735808512025,0.0817309,96253.0,96252.0,0.0001708]
[1735808512232,0.0817309,96253.0,96252.0,0.0041708]
[1735808518770,0.25892462,96253.0,96252.0,0.0041708]
[1735808518978,0.2047309,96253.0,96252.0,0.0041708]
[1735808519985,0.1047309,96253.0,96252.0,0.0041708]
[1735808520208,0.2047309,96253.0,96252.0,0.0041708]
[1735808520486,0.43854482,96253.0,96252.0,0.0041708]
[1735808521797,0.39218382,96253.0,96252.0,0.0041708]
[1735808521998,0.78692246,96253.0,96252.0,0.0041708]
[1735808522253,0.68293614,96253.0,96252.0,8e-07]
[1735808522421,0.2047309,96228.0,96227.0,0.0001706]
[1735808522619,0.2047309,96228.0,96227.0,0.00026744]
[1735808522821,0.4125699,96228.0,96227.0,0.00026744]
[1735808523255,0.6625699,96228.0,96227.0,4.4e-07]
[1735808523627,0.5125829,96222.0,96221.0,2.4e-07]
[1735808523836,0.5125829,96222.0,96221.0,0.00049109]
[1735808524240,0.61656922,96222.0,96221.0,0.00049085]
[1735808524450,0.76656922,96222.0,96221.0,9e-08]
[1735808524619,0.89125841,96222.0,96221.0,9e-08]
[1735808525184,1.28027553,96222.0,96221.0,9e-08]
[1735808525586,1.28327553,96222.0,96221.0,9e-08]
[1735808526319,1.28909701,96222.0,96221.0,9e-08]
[1735808526525,1.58373892,96222.0,96221.0,9e-08]
[1735808526836,1.58373892,96222.0,96221.0,8.9e-07]
[1735808527268,1.4767526,96222.0,96221.0,8.9e-07]
[1735808527443,1.01803538,96222.0,96221.0,8.9e-07]
[1735808527644,1.02103538,96222.0,96221.0,8.9e-07]
[1735808527845,0.36055487,96222.0,96221.0,8.9e-07]
[1735808528195,0.54228577,96222.0,96221.0,8.9e-07]
[1735808528416,0.34228577,96222.0,96221.0,8.9e-07]
[1735808529167,0.53928577,96222.0,96221.0,8.9e-07]
[1735808529307,0.43928577,96222.0,96221.0,8.9e-07]
[1735808529510,0.53328577,96222.0,96221.0,8.9e-07]
[1735808529890,0.59355947,96222.0,96221.0,8.9e-07]
[1735808530090,0.43328577,96222.0,96221.0,8.9e-07]
[1735808530540,0.43628577,96222.0,96221.0,8.9e-07]
[1735808530717,0.53628577,96222.0,96221.0,8.9e-07]
[1735808530921,0.53328577,96222.0,96221.0,8.9e-07]
[1735808531329,0.43428577,96222.0,96221.0,8.9e-07]
[1735808531525,0.4639677,96222.0,96221.0,8.9e-07]
[1735808531734,0.4629677,96222.0,96221.0,8.9e-07]
[1735808531942,0.25155487,96222.0,96221.0,8.9e-07]
[1735808532162,0.25255487,96222.0,96221.0,8.9e-07]
[1735808532370,0.0827309,96222.0,96221.0,0.10398721]
[1735808532616,0.001,96222.0,96221.0,0.17958721]
[1735808532819,0.0827309,96222.0,96221.0,0.17958721]
[1735808533447,0.20784,96228.0,96221.0,0.17958721]
[1735808533709,0.20784,96228.0,96222.0,0.10398632]
[1735808533948,0.20784,96228.0,96222.0,0.10298632]
[1735808534346,0.0817309,96223.0,96222.0,0.10298632]
[1735808534542,0.20784,96228.0,96222.0,0.10298632]
[1735808534949,0.0817309,96223.0,96222.0,0.10298632]
[1735808535244,0.20784,96228.0,96222.0,0.10298632]
[1735808535444,0.20784,96228.0,96222.0,0.10498632]
[1735808536597,0.0817309,96223.0,96222.0,0.11398632]
[1735808536762,0.0817309,96223.0,96222.0,0.11198632]
[1735808536982,0.0817309,96223.0,96222.0,0.10298632]
[1735808537165,0.0817309,96223.0,96222.0,0.11598632]
[1735808537369,0.20884,96228.0,96222.0,0.11598632]
[1735808537574,0.0817309,96223.0,96222.0,0.10298632]
[1735808537750,0.0817309,96223.0,96222.0,0.10698632]
[1735808538340,0.0817309,96223.0,96222.0,0.10298632]
[1735808538537,0.0817309,96223.0,96222.0,0.10598632]
[1735808538746,0.0817309,96225.0,96222.0,0.10615712]
[1735808538959,0.0827309,96223.0,96222.0,0.24105712]
[1735808539826,0.0817309,96223.0,96222.0,0.23205712]
[1735808539963,0.0817309,96223.0,96222.0,0.23805712]
[1735808540161,0.0817309,96223.0,96222.0,0.23305712]
[1735808540563,0.0827309,96223.0,96222.0,0.24205712]
[1735808542315,0.0827309,96223.0,96222.0,0.23305712]
[1735808542522,0.0817309,96223.0,96222.0,0.23305712]
[1735808542729,0.0827309,96223.0,96222.0,0.24205712]
[1735808543028,0.0827309,96223.0,96222.0,0.23805712]
[1735808543363,0.0827309,96223.0,96222.0,0.24205712]
[1735808544229,0.0827309,96223.0,96222.0,0.20205712]
[1735808550717,0.0827309,96223.0,96222.0,0.15535712]
[1735808550937,0.0828163,96223.0,96222.0,0.15535712]
[1735808554518,0.0828163,96223.0,96222.0,0.0923708]
[1735808555676,0.0828163,96223.0,96222.0,0.19635712]
[1735808556254,0.0010854,96223.0,96222.0,0.34635712]
[1735808561934,0.0010854,96223.0,96222.0,0.34335712]
[1735808563808,0.0010854,96223.0,96222.0,0.34352792]
[1735808567421,0.0828163,96223.0,96222.0,0.19352792]
[1735808568201,0.0828163,96223.0,96222.0,0.18952792]
[1735808568353,0.0828163,96223.0,96222.0,0.18352792]
[1735808568719,0.0818163,96223.0,96222.0,0.18352792]
[1735808568890,0.0828163,96223.0,96222.0,0.18952792]
[1735808569100,0.0010854,96223.0,96222.0,0.18052792]
[1735808569340,0.0010854,96223.0,96222.0,0.18952792]
[1735808569682,0.0020854,96223.0,96222.0,0.19252792]
[1735808572762,0.0838163,96223.0,96222.0,0.19252792]
[1735808578792,0.0838163,96223.0,96222.0,0.17752792]
[1735808590604,0.2916663,96223.0,96222.0,0.11615712]
[1735808599656,0.2916663,96223.0,96222.0,0.0121708]
[1735808608302,0.4314456,96223.0,96222.0,0.0121708]
[1735808608505,0.45177218,96223.0,96222.0,0.0900708]
[1735808608707,0.2235956,96223.0,96222.0,0.19405712]
[1735808609310,0.0838163,96223.0,96222.0,0.19405712]
[1735808610091,0.0020854,96223.0,96222.0,0.34405712]
[1735808610552,0.0020854,96223.0,96222.0,0.39145712]
[1735808610960,0.09366841,96233.0,96222.0,0.39145712]
[1735808611159,0.09366841,96233.0,96232.0,0.46181732]
[1735808611382,0.09366841,96233.0,96232.0,0.58691732]
[1735808611947,0.09366841,96249.0,96248.0,0.1279]
[1735808612133,0.09366841,96249.0,96248.0,0.23188632]
[1735808613192,8.54e-05,96254.0,96248.0,0.15238632]
[1735808613392,8.54e-05,96254.0,96249.0,0.17908632]
[1735808613918,8.54e-05,96254.0,96250.0,0.15]
[1735808614126,8.54e-05,96254.0,96251.0,0.10398632]
[1735808614504,8.54e-05,96254.0,96252.0,0.53687332]
[1735808615261,0.00057534,96253.0,96252.0,0.53687332]
[1735808615820,0.00057534,96253.0,96252.0,0.54087332]
[1735808616230,0.00057534,96253.0,96252.0,0.54987332]
[1735808616940,0.00057534,96253.0,96252.0,0.54087332]
[1735808617138,0.00057534,96253.0,96252.0,0.53687332]
[1735808617308,0.00057534,96253.0,96252.0,0.54587332]
[1735808617501,0.00057534,96253.0,96252.0,0.53687332]
[1735808617928,0.00057534,96253.0,96252.0,0.54187332]
[1735808618536,0.00057534,96253.0,96252.0,0.53687332]
[1735808618781,0.00057534,96253.0,96252.0,0.54187332]
[1735808618969,0.00057534,96253.0,96252.0,0.55087332]
[1735808619720,0.00057534,96253.0,96252.0,0.54187332]
[1735808619858,0.00057534,96253.0,96252.0,0.55087332]
[1735808620059,0.00057534,96253.0,96252.0,0.54587332]
[1735808620396,0.00057534,96253.0,96252.0,0.54187332]
[1735808620876,0.00057534,96253.0,96252.0,0.53687332]
[1735808621085,0.00057534,96253.0,96252.0,0.58427332]
[1735808621291,0.00057534,96253.0,96252.0,0.58927332]
[1735808621651,0.00057534,96253.0,96252.0,0.59827332]
[1735808621856,0.00057534,96253.0,96252.0,0.59327332]
[1735808622105,0.00057534,96253.0,96252.0,0.59827332]
[1735808622714,0.00057534,96253.0,96252.0,0.58927332]
[1735808623086,0.00057534,96253.0,96252.0,0.59827332]
[1735808623333,0.00057534,96253.0,96252.0,0.58427332]
[1735808623792,0.00057534,96253.0,96252.0,0.59827332]
[1735808624024,0.00057534,96253.0,96252.0,0.58927332]
[1735808624272,0.00057534,96253.0,96252.0,0.58427332]
[1735808624479,0.00057534,96253.0,96252.0,0.59827332]
[1735808624664,0.00057534,96253.0,96252.0,0.58927332]
[1735808625064,0.00057534,96253.0,96252.0,0.58427332]
[1735808625263,0.00057534,96253.0,96252.0,0.58927332]
[1735808625815,0.00057534,96253.0,96252.0,0.59827332]
[1735808626420,0.00057534,96253.0,96252.0,0.59327332]
[1735808626624,0.00057534,96253.0,96252.0,0.6038355]
[1735808626936,0.00057534,96253.0,96252.0,0.6088355]
[1735808627379,0.00057534,96253.0,96252.0,0.6038355]
[1735808627587,0.00057534,96253.0,96252.0,0.6088355]
[1735808631217,0.00057534,96253.0,96252.0,0.59827332]
[1735808631441,0.00057534,96253.0,96252.0,0.39048632]
[1735808631773,0.00057534,96253.0,96252.0,0.34308632]
[1735808633574,0.00057534,96253.0,96252.0,0.38888632]
[1735808634913,8.54e-05,96254.0,96253.0,0.4990541]
[1735808635113,0.0484,96307.0,96256.0,0.4166691]
[1735808635314,0.0484,96307.0,96256.0,0.52065542]
[1735808635717,0.207686,96300.0,96256.0,0.52065542]
[1735808635917,0.207676,96304.0,96256.0,0.53820013]
[1735808636287,0.207676,96304.0,96278.0,0.482131]
[1735808636491,0.00023235,96279.0,96278.0,0.58611732]
[1735808637467,0.00023235,96279.0,96278.0,0.59111732]
[1735808638881,0.00023235,96279.0,96278.0,0.60011732]
[1735808639082,0.00023235,96279.0,96278.0,0.60866203]
[1735808639480,0.00023235,96279.0,96278.0,0.61266203]
[1735808639702,0.00018235,96279.0,96278.0,0.62066203]
[1735808641844,0.00018235,96279.0,96278.0,0.61166203]
[1735808642266,0.00018235,96279.0,96278.0,0.62066203]
[1735808642858,0.00018235,96279.0,96278.0,0.65426403]
[1735808643057,0.00018235,96279.0,96278.0,0.67247204]
[1735808643933,0.00018235,96279.0,96278.0,0.66447204]
[1735808644114,0.00013235,96279.0,96278.0,0.67247204]
[1735808644518,0.00013235,96279.0,96278.0,0.67264264]
[1735808644758,0.00021765,96279.0,96278.0,0.66464264]
[1735808645279,0.00021765,96279.0,96278.0,0.67364264]
[1735808646587,0.00021765,96279.0,96278.0,0.66464264]
[1735808646798,0.00021765,96279.0,96278.0,0.65564264]
[1735808647004,0.00021765,96279.0,96278.0,0.67364264]
[1735808647631,0.00021765,96279.0,96278.0,0.69664264]
[1735808647841,0.00021765,96279.0,96278.0,0.71983176]
[1735808648433,0.00021765,96279.0,96278.0,0.72883176]
[1735808650115,0.49979964,96299.0,96297.0,0.15]
[1735808650326,0.49979964,96299.0,96298.0,0.25398632]
[1735808651471,0.49979964,96299.0,96298.0,0.26298632]
[1735808653031,0.49979964,96299.0,96298.0,0.26798632]
[1735808654589,0.49970772,96299.0,96298.0,0.26798632]
[1735808655862,0.49979302,96299.0,96298.0,0.26798632]
[1735808656752,0.49979302,96299.0,96298.0,0.26298632]
[1735808656951,0.49979302,96299.0,96298.0,0.25398632]
[1735808657125,0.49979302,96299.0,96298.0,0.25898632]
[1735808658768,0.49979302,96299.0,96298.0,0.26798632]
[1735808662841,0.49979302,96299.0,96298.0,0.26298632]
[1735808663051,0.49979302,96299.0,96298.0,0.25698632]
[1735808663259,0.49979302,96299.0,96298.0,0.26598632]
[1735808663689,0.49979302,96299.0,96298.0,0.25398632]
[1735808663886,0.49979302,96299.0,96298.0,0.26598632]
[1735808665149,0.49979302,96299.0,96298.0,0.25398632]
[1735808665529,0.49979302,96299.0,96298.0,0.26298632]
[1735808665724,0.49979302,96299.0,96298.0,0.25398632]
[1735808665931,0.49979302,96299.0,96298.0,0.25698632]
[1735808666125,0.49979302,96299.0,96298.0,0.26598632]
[1735808666487,0.49979302,96299.0,96298.0,0.26298632]
[1735808666686,0.49979302,96299.0,96298.0,0.26598632]
[1735808668234,0.49979302,96299.0,96298.0,0.26615692]
[1735808668816,0.49979302,96299.0,96298.0,0.26315692]
[1735808669047,0.49979302,96299.0,96298.0,0.25415692]
[1735808669219,0.49979302,96299.0,96298.0,0.26715692]
[1735808671718,0.49979302,96299.0,96298.0,0.34625692]
[1735808672617,0.49979302,96299.0,96298.0,0.36386269]
[1735808673755,0.49979302,96299.0,96298.0,0.34625692]
[1735808674945,0.49979302,96299.0,96298.0,0.36386524]
[1735808675303,0.49979302,96299.0,96298.0,0.34625692]
[1735808676783,0.49979302,96299.0,96298.0,0.36386758]
[1735808677743,0.49979302,96299.0,96298.0,0.34625692]
[1735808678914,0.49979302,96299.0,96298.0,0.36386604]
[1735808683058,0.49979302,96299.0,96298.0,0.41196604]
[1735808684438,0.49979302,96299.0,96298.0,0.75508132]
[1735808685235,0.49979302,96299.0,96298.0,0.96276932]
[1735808686461,0.49979302,96299.0,96298.0,0.61965404]
[1735808689007,0.49979302,96299.0,96298.0,0.69318579]
[1735808689534,0.49979302,96299.0,96298.0,1.13627204]
[1735808690017,0.49979302,96299.0,96298.0,1.16627204]
[1735808690565,0.49979302,96299.0,96298.0,1.06627204]
[1735808690778,0.49979302,96299.0,96298.0,1.16627204]
[1735808690992,0.0817309,96337.0,96319.0,0.484643]
[1735808691175,0.0645352,96339.0,96319.0,0.58862932]
[1735808691176,0.00023257,96320.0,96319.0,0.58862932]
[1735808691683,0.00023257,96320.0,96319.0,0.60623844]
[1735808692375,0.00023257,96320.0,96319.0,0.61523844]
[1735808692754,0.00023257,96320.0,96319.0,0.58862932]
[1735808692909,0.00023257,96320.0,96319.0,0.59762932]
[1735808693383,0.00023257,96320.0,96319.0,0.60362932]
[1735808693876,0.00023257,96320.0,96319.0,0.59762932]
[1735808694283,0.00023257,96320.0,96319.0,0.60362932]
[1735808694718,0.00023257,96320.0,96319.0,0.59762932]
[1735808694896,0.00023257,96320.0,96319.0,0.59462932]
[1735808695092,0.00023257,96320.0,96319.0,0.60362932]
[1735808695513,0.00023257,96320.0,96319.0,0.59462932]
[1735808695713,0.00023257,96320.0,96319.0,0.60362932]
[1735808696095,0.00023257,96320.0,96319.0,0.59762932]
[1735808696665,0.00023257,96320.0,96319.0,0.60362932]
[1735808697427,0.00023257,96320.0,96319.0,0.59762932]
[1735808697717,0.00023257,96320.0,96319.0,0.60462932]
[1735808697910,0.00023257,96320.0,96319.0,0.59562932]
[1735808698155,0.00023257,96320.0,96319.0,0.60462932]
[1735808698560,0.00023257,96320.0,96319.0,0.59562932]
[1735808698774,0.00023257,96320.0,96319.0,0.60462932]
[1735808699358,0.00023257,96320.0,96319.0,0.59762932]
[1735808699719,0.00023257,96320.0,96319.0,0.60462932]
[1735808701021,0.00023257,96320.0,96319.0,0.55812932]
[1735808704586,0.00023257,96320.0,96319.0,0.11998632]
[1735808704995,0.08196347,96320.0,96319.0,0.11998632]
[1735808705190,0.08196347,96320.0,96319.0,0.016]
[1735808705608,0.08196347,96320.0,96319.0,0.009]
[1735808705779,0.08196347,96320.0,96319.0,0.011]
[1735808705980,0.08196347,96320.0,96319.0,0.002]
[1735808706210,0.12876347,96320.0,96319.0,0.002]
[1735808706425,0.207655,96314.0,96303.0,0.15]
[1735808706735,0.207655,96314.0,96305.0,0.15]
[1735808706736,0.41531,96314.0,96305.0,0.15]
[1735808706871,0.41531,96314.0,96307.0,0.15]
[1735808707080,0.41531,96314.0,96309.0,0.15]
[1735808707283,0.41531,96314.0,96311.0,0.15]
[1735808707482,0.41531,96314.0,96313.0,0.15]
[1735808707688,0.207655,96314.0,96313.0,0.25398632]
[1735808708298,0.0817309,96315.0,96313.0,0.25398632]
[1735808708499,0.0817309,96315.0,96314.0,0.25398632]
[1735808708706,0.0817309,96318.0,96315.0,0.15]
[1735808708910,0.00023257,96320.0,96317.0,0.15]
[1735808709138,0.00023257,96320.0,96318.0,0.10398632]
[1735808709759,0.00023257,96320.0,96319.0,0.15]
[1735808709959,0.00023257,96320.0,96319.0,0.25398632]
[1735808712023,0.00023257,96320.0,96319.0,0.46262932]
[1735808712439,0.00023257,96320.0,96319.0,0.46862932]
[1735808712641,0.00023257,96320.0,96319.0,0.47062932]
[1735808713261,0.00023257,96320.0,96319.0,0.46162932]
[1735808713476,0.00023257,96320.0,96319.0,0.46462932]
[1735808713678,0.00023257,96320.0,96319.0,0.46862932]
[1735808715992,0.00023257,96320.0,96319.0,0.54732932]
[1735808719165,0.00023257,96320.0,96319.0,0.59442932]
[1735808720686,0.00023257,96320.0,96319.0,0.26098632]
[1735808721284,0.00023257,96320.0,96319.0,0.25698632]
[1735808721483,0.00023257,96320.0,96319.0,0.25398632]
[1735808721720,0.00023257,96320.0,96319.0,0.26298632]
[1735808721872,0.00023257,96320.0,96319.0,0.25698632]
[1735808722279,0.00023257,96320.0,96319.0,0.25898632]
[1735808722484,0.00023257,96320.0,96319.0,0.25398632]
[1735808722685,0.00023257,96320.0,96319.0,0.25698632]
[1735808723050,0.00023257,96320.0,96319.0,0.26198632]
[1735808724209,0.08196347,96320.0,96319.0,0.26198632]
[1735808724601,0.08196347,96320.0,96319.0,0.25398632]
[1735808724804,0.08196347,96320.0,96319.0,0.25898632]
[1735808725001,0.08196347,96320.0,96319.0,0.26198632]
[1735808725201,0.08196347,96320.0,96319.0,0.25698632]
[1735808725405,0.08196347,96320.0,96319.0,0.25498632]
[1735808725635,0.08196347,96320.0,96319.0,0.25398632]
[1735808725833,0.08196347,96320.0,96319.0,0.25498632]
[1735808726032,0.08196347,96320.0,96319.0,0.25598632]
[1735808726273,0.08196347,96320.0,96319.0,0.25498632]
[1735808726397,0.00023257,96320.0,96319.0,0.25498632]
[1735808726841,0.00023257,96320.0,96319.0,0.25598632]
[1735808727040,0.08196347,96320.0,96319.0,0.25598632]
[1735808727500,0.28960447,96320.0,96319.0,0.25498632]
[1735808727903,0.28960447,96320.0,96319.0,0.25698632]
[1735808728180,0.08196347,96320.0,96319.0,0.25698632]
[1735808728435,0.08196347,96320.0,96319.0,0.25598632]
[1735808728659,0.00023257,96320.0,96319.0,0.25398632]
[1735808728863,0.00023257,96320.0,96319.0,0.25598632]
[1735808729011,0.08196347,96320.0,96319.0,0.25798632]
[1735808729200,0.08196347,96320.0,96319.0,0.25398632]
[1735808729571,0.08196347,96320.0,96319.0,0.25798632]
[1735808731121,0.08196347,96320.0,96319.0,0.25598632]
[1735808731726,0.08196347,96320.0,96319.0,0.25798632]
[1735808732881,0.28960447,96320.0,96319.0,0.25798632]
[1735808733298,0.08196347,96320.0,96319.0,0.25798632]
[1735808733666,0.00023257,96320.0,96319.0,0.38818632]
[1735808734048,0.00023257,96320.0,96319.0,0.38418632]
[1735808734493,0.00023257,96320.0,96319.0,0.40375809]
[1735808734664,0.00023257,96320.0,96319.0,0.40275809]
[1735808734887,0.00023257,96320.0,96319.0,0.40475809]
[1735808735251,0.00023257,96320.0,96319.0,0.40675809]
[1735808735660,0.00023257,96320.0,96319.0,0.40175809]
[1735808736060,0.00023257,96320.0,96319.0,0.40375809]
[1735808736872,0.0437752,96339.0,96324.0,0.0454]
[1735808737078,0.03256034,96339.0,96338.0,0.57745742]
[1735808737291,0.03256034,96339.0,96338.0,1.80408204]
[1735808737497,0.03256034,96339.0,96338.0,1.77188385]
[1735808737699,0.03256034,96339.0,96338.0,1.80402564]
[1735808737903,0.03256034,96339.0,96338.0,1.81046635]
[1735808738112,8.54e-05,96349.0,96346.0,0.357585]
[1735808738320,8.54e-05,96349.0,96346.0,0.53667132]
[1735808738534,8.54e-05,96349.0,96346.0,0.56814095]
[1735808738733,8.54e-05,96349.0,96346.0,0.59114095]
[1735808739140,8.54e-05,96349.0,96346.0,0.60871272]
[1735808739434,8.54e-05,96349.0,96346.0,0.61371272]
[1735808739960,8.54e-05,96349.0,96346.0,0.59614095]
[1735808740308,8.54e-05,96349.0,96346.0,0.57367132]
[1735808740514,0.0008432,96347.0,96346.0,0.60014095]
[1735808740741,0.0008432,96347.0,96346.0,0.56467132]
[1735808740913,0.0008432,96347.0,96346.0,0.57367132]
[1735808741117,0.0008432,96347.0,96346.0,0.55067132]
[1735808741306,0.0008432,96347.0,96346.0,0.47057132]
[1735808741507,0.0008432,96347.0,96346.0,0.47557132]
[1735808741711,0.0008432,96347.0,96346.0,0.32557132]
[1735808742132,0.0008432,96347.0,96346.0,0.32057132]
[1735808742419,0.0008432,96347.0,96346.0,0.32557132]
[1735808742825,0.0008432,96347.0,96346.0,0.47557132]
[1735808743229,0.0008432,96347.0,96346.0,0.46657132]
[1735808743624,0.0008432,96347.0,96346.0,0.46157132]
[1735808743821,0.0008432,96347.0,96346.0,0.47057132]
[1735808744034,0.0008432,96347.0,96346.0,0.47557132]
[1735808744167,0.0008432,96347.0,96346.0,0.46657132]
[1735808744376,0.0008432,96347.0,96346.0,0.46157132]
[1735808744685,0.0008432,96347.0,96346.0,0.47557132]
[1735808746680,0.05391793,96347.0,96346.0,0.11798632]
[1735808747113,0.15391793,96347.0,96346.0,0.11798632]
[1735808747524,0.15391793,96347.0,96346.0,0.10398632]
[1735808747707,0.15391793,96347.0,96346.0,0.11198632]
[1735808747913,0.15391793,96347.0,96346.0,0.10698632]
[1735808748439,0.15391793,96347.0,96346.0,0.10798632]
[1735808749630,0.15391793,96347.0,96346.0,0.10498632]
[1735808750154,0.15391793,96347.0,96346.0,0.10398632]
[1735808750355,0.15391793,96347.0,96346.0,0.10798632]
[1735808750863,0.15391793,96347.0,96346.0,0.10398632]
[1735808751302,0.15391793,96347.0,96346.0,0.10598632]
[1735808752152,0.15391793,96347.0,96346.0,0.002]
[1735808752357,0.23211793,96347.0,96346.0,0.002]
[1735808752684,0.23211793,96347.0,96346.0,0.006]
[1735808752896,0.23211793,96347.0,96341.0,0.0001708]
[1735808753090,0.192585,96346.0,96341.0,0.0001708]
[1735808753293,0.400171,96346.0,96341.0,0.0001708]
[1735808753515,0.1,96342.0,96341.0,0.0001708]
[1735808754915,0.1,96342.0,96341.0,0.0011708]
[1735808756195,0.1,96342.0,96341.0,0.0001708]
[1735808756492,0.1,96342.0,96341.0,0.0011708]
[1735808756704,0.15307473,96342.0,96341.0,0.0021708]
[1735808756904,0.15307473,96342.0,96341.0,0.0001708]
[1735808757109,0.15307473,96342.0,96341.0,6.408e-05]
[1735808757326,0.15407473,96342.0,96341.0,0.00106408]
[1735808757546,0.15407473,96342.0,96341.0,0.04107408]
[1735808757720,0.15407473,96342.0,96341.0,0.04007408]
[1735808757923,0.15307473,96342.0,96341.0,0.04007408]
[1735808758356,0.15407473,96342.0,96341.0,0.04007408]